bitfinex-derivatives/quotes_BTCF0:USTF0_20260106
["timestamp","ask_amount","ask_price","bid_price","bid_amount"]
[1767732246865,0.010785,92775.0,92766.0,0.09172]
[1767732247064,0.010784,92789.0,92766.0,0.09172]
[1767732247065,0.010785,92779.0,92766.0,0.09172]
[1767732247260,0.010784,92787.0,92766.0,0.09172]
[1767732247666,0.010785,92778.0,92766.0,0.09172]
[1767732248166,0.010784,92787.0,92766.0,0.09172]
[1767732248476,0.010784,92787.0,92768.0,0.00970065]
[1767732248780,0.010784,92787.0,92769.0,0.00901969]
[1767732248968,0.010784,92787.0,92771.0,0.00970065]
[1767732248969,0.010785,92779.0,92771.0,0.00970065]
[1767732249370,0.010785,92777.0,92771.0,0.00970065]
[1767732249978,0.010784,92787.0,92771.0,0.00970065]
[1767732250377,0.010785,92777.0,92771.0,0.00970065]
[1767732250879,0.010785,92779.0,92771.0,0.00970065]
[1767732251080,0.010785,92775.0,92771.0,6.5e-07]
[1767732251381,0.010784,92786.0,92768.0,0.09172]
[1767732251382,0.00989518,92786.0,92768.0,0.09172]
[1767732251569,0.010785,92777.0,92768.0,0.09172]
[1767732252175,0.010785,92778.0,92768.0,0.09172]
[1767732253181,0.010785,92776.0,92769.0,0.00970065]
[1767732253483,0.010785,92775.0,92769.0,0.00970065]
[1767732253886,0.010785,92777.0,92769.0,0.00970065]
[1767732254177,0.010784,92785.0,92769.0,0.00970065]
[1767732254379,0.010786,92772.0,92769.0,6.5e-07]
[1767732254681,0.010786,92770.0,92761.0,0.00901969]
[1767732254885,0.010786,92772.0,92762.0,0.09172]
[1767732255879,0.010786,92772.0,92736.0,0.01079]
[1767732255880,0.4,92772.0,92735.0,0.1792]
[1767732256072,0.00989518,92762.0,92718.0,0.07659373]
[1767732256374,0.010788,92749.0,92730.0,0.09172]
[1767732256581,0.010788,92749.0,92731.0,0.00970065]
[1767732256780,0.010788,92749.0,92732.0,0.00901969]
[1767732256981,0.010788,92749.0,92734.0,0.00901969]
[1767732257178,0.010788,92749.0,92736.0,0.00901969]
[1767732257383,0.010788,92749.0,92737.0,0.00970065]
[1767732257583,0.010788,92749.0,92738.0,0.00970065]
[1767732257985,0.010788,92752.0,92738.0,0.00970065]
[1767732258781,0.010788,92752.0,92740.0,0.00970065]
[1767732258976,0.010788,92753.0,92741.0,0.10142065]
[1767732260178,0.00989518,92749.0,92729.0,0.00215683]
[1767732260380,0.01079,92735.0,92729.0,8.3e-07]
[1767732260885,0.01079,92738.0,92729.0,8.3e-07]
[1767732261586,0.02634304,92738.0,92729.0,8.3e-07]
[1767732262190,0.01079,92736.0,92729.0,8.3e-07]
[1767732264389,0.01555304,92738.0,92729.0,8.3e-07]
[1767732264689,0.4,92738.0,92729.0,8.3e-07]
[1767732265988,0.41570779,92738.0,92729.0,8.3e-07]
[1767732270794,0.41570779,92738.0,92729.0,0.00970148]
[1767732274892,0.41570779,92738.0,92729.0,8.3e-07]
[1767732284500,0.4,92737.0,92729.0,8.3e-07]
[1767732286097,0.00992674,92731.0,92729.0,8.3e-07]
[1767732286395,0.00992674,92730.0,92729.0,8.3e-07]
[1767732288603,0.4,92731.0,92729.0,8.3e-07]
[1767732290701,0.010792,92718.0,92715.0,8.3e-07]
[1767732290905,0.01456672,92723.0,92715.0,8.3e-07]
[1767732291102,0.40992674,92722.0,92715.0,8.3e-07]
[1767732291903,0.00992674,92721.0,92715.0,8.3e-07]
[1767732294998,0.02449346,92721.0,92715.0,8.3e-07]
[1767732296802,0.02449346,92720.0,92715.0,8.3e-07]
[1767732297113,0.00992674,92719.0,92715.0,8.3e-07]
[1767732297813,0.00992674,92719.0,92708.0,0.09176]
[1767732299308,0.00992674,92719.0,92709.0,0.10167017]
[1767732300306,0.4,92722.0,92713.0,0.010792]
[1767732300512,0.00930783,92739.0,92722.0,0.01403431]
[1767732300805,0.01489161,92737.0,92718.0,0.102552]
[1767732301005,0.00930783,92733.0,92720.0,0.010792]
[1767732301207,0.00930783,92733.0,92722.0,0.010791]
[1767732301508,0.01489161,92737.0,92720.0,0.10167017]
[1767732302111,0.01489161,92737.0,92718.0,0.09176]
[1767732302307,0.01489161,92737.0,92721.0,0.010791]
[1767732303406,0.01489161,92737.0,92723.0,0.010791]
[1767732304007,0.02448797,92737.0,92723.0,0.010791]
[1767732305615,0.01898048,92749.0,92729.0,0.01966115]
[1767732305819,0.02857684,92748.0,92730.0,0.11246017]
[1767732306118,0.02857684,92746.0,92730.0,0.11246017]
[1767732306316,0.01898048,92745.0,92730.0,0.11246017]
[1767732307019,0.01898048,92745.0,92730.0,0.10167017]
[1767732307215,0.00215614,92759.0,92741.0,0.01966115]
[1767732307419,0.01898048,92760.0,92749.0,0.10167017]
[1767732307609,0.02857684,92754.0,92741.0,0.09176]
[1767732307919,0.02857684,92753.0,92741.0,0.09176]
[1767732310819,0.01898048,92736.0,92717.0,0.01966115]
[1767732311123,0.02857684,92731.0,92717.0,0.09176]
[1767732311417,0.02857684,92731.0,92720.0,0.10167017]
[1767732311609,0.00959636,92731.0,92720.0,0.10167017]
[1767732312314,0.01898048,92739.0,92724.0,0.010791]
[1767732312513,0.01898048,92739.0,92730.0,0.10167017]
[1767732312914,0.01898048,92739.0,92724.0,0.010791]
[1767732313227,0.01898048,92735.0,92720.0,0.10167017]
[1767732314423,0.01898048,92739.0,92720.0,0.12133132]
[1767732314919,0.02857684,92753.0,92732.0,0.01966115]
[1767732315124,0.10167017,92790.0,92740.0,0.10167017]
[1767732315125,0.09176,92755.0,92740.0,0.10167017]
[1767732315325,0.12033684,92755.0,92740.0,0.10167017]
[1767732315622,0.02857684,92750.0,92730.0,0.1111212]
[1767732315824,0.01898048,92748.0,92730.0,0.10167017]
[1767732316618,0.01898048,92733.0,92714.0,0.03045315]
[1767732316824,0.01898048,92733.0,92720.0,0.10167017]
[1767732317021,0.00959636,92734.0,92720.0,0.10167017]
[1767732319229,0.00959636,92734.0,92716.0,0.01966115]
[1767732319437,0.00959636,92734.0,92729.0,0.00215683]
[1767732319730,0.00959636,92734.0,92720.0,0.10167017]
[1767732321727,0.09176,92750.0,92734.0,0.01966115]
[1767732321932,0.09176,92750.0,92731.0,0.02911218]
[1767732322227,0.12033684,92750.0,92731.0,0.02911218]
[1767732322530,0.01898048,92749.0,92731.0,0.00945103]
[1767732322720,0.02857684,92749.0,92731.0,0.00945103]
[1767732322920,0.02857684,92748.0,92731.0,0.00945103]
[1767732323926,0.02857684,92748.0,92730.0,0.10167017]
[1767732324128,0.01898048,92747.0,92730.0,0.10167017]
[1767732325122,0.01898048,92747.0,92728.0,0.11142115]
[1767732325428,0.01898048,92747.0,92730.0,0.10167017]
[1767732326129,0.01898048,92747.0,92730.0,0.11246017]
[1767732326332,0.09176,92750.0,92732.0,0.01966115]
[1767732326530,0.09176,92750.0,92728.0,0.10121103]
[1767732326531,0.09176,92750.0,92733.0,0.03045115]
[1767732327230,0.11074048,92750.0,92733.0,0.01079]
[1767732327836,0.09176,92750.0,92733.0,0.01966115]
[1767732328227,0.11074048,92750.0,92732.0,0.01079]
[1767732328435,0.01898048,92748.0,92729.0,0.01966115]
[1767732328637,0.01898048,92747.0,92729.0,0.01966115]
[1767732328837,0.02857684,92747.0,92728.0,0.10121103]
[1767732329923,0.010789,92744.0,92728.0,0.09176]
[1767732330436,0.010789,92742.0,92728.0,0.09176]
[1767732331032,0.010789,92741.0,92728.0,0.09176]
[1767732331339,0.02976948,92744.0,92728.0,0.09176]
[1767732331728,0.01898048,92744.0,92728.0,0.09176]
[1767732333838,0.01812834,92743.0,92728.0,0.09176]
[1767732335132,0.01812834,92743.0,92728.0,0.102551]
[1767732336442,0.00957604,92744.0,92728.0,0.102551]
[1767732336839,0.00957604,92744.0,92728.0,0.09176]
[1767732337240,0.00957604,92744.0,92727.0,0.010791]
[1767732337426,0.00957604,92744.0,92728.0,0.09176]
[1767732338642,0.00957604,92744.0,92727.0,0.010791]
[1767732338843,0.00957604,92744.0,92728.0,0.09176]
[1767732339235,0.00957604,92744.0,92729.0,0.09176]
[1767732342235,0.01812834,92735.0,92721.0,0.09176]
[1767732342435,0.00957604,92736.0,92721.0,0.09176]
[1767732342734,0.01812834,92739.0,92721.0,0.102552]
[1767732342940,0.01812834,92739.0,92721.0,0.12114881]
[1767732344143,0.03849338,92742.0,92721.0,0.12114881]
[1767732345746,0.01812834,92741.0,92721.0,0.12114881]
[1767732346540,0.01812834,92741.0,92721.0,0.11035681]
[1767732346742,0.01812834,92741.0,92721.0,0.12114881]
[1767732347651,0.02770438,92747.0,92726.0,0.01859681]
[1767732347844,0.02770438,92741.0,92721.0,0.09176]
[1767732348050,0.02770438,92741.0,92723.0,0.010791]
[1767732348549,0.02770438,92741.0,92725.0,0.010791]
[1767732348752,0.02770438,92741.0,92722.0,0.02938781]
[1767732349457,0.02770438,92741.0,92725.0,0.010791]
[1767732350653,0.02770438,92741.0,92723.0,0.010791]
[1767732351156,0.02770438,92741.0,92724.0,0.010791]
[1767732351455,0.00957604,92741.0,92724.0,0.010791]
[1767732351751,0.01812834,92744.0,92724.0,0.02938781]
[1767732351955,0.01812834,92743.0,92726.0,0.010791]
[1767732352454,0.01812834,92743.0,92724.0,0.01859681]
[1767732353451,0.01812834,92743.0,92724.0,0.02938781]
[1767732357646,0.01812834,92743.0,92725.0,0.010791]
[1767732360349,0.01639725,92742.0,92721.0,0.10754123]
[1767732360554,0.01639725,92741.0,92721.0,0.10754123]
[1767732360854,0.010789,92739.0,92721.0,0.10754123]
[1767732361649,0.01639725,92741.0,92721.0,0.11833223]
[1767732361946,0.01639725,92741.0,92722.0,0.01617428]
[1767732362853,0.01591324,92730.0,92714.0,0.09176]
[1767732363156,0.02030552,92730.0,92714.0,0.09176]
[1767732363358,0.00951452,92730.0,92714.0,0.09176]
[1767732363545,0.010791,92729.0,92714.0,0.09176]
[1767732363746,0.00951452,92730.0,92714.0,0.09176]
[1767732364156,0.010791,92728.0,92714.0,0.09176]
[1767732365251,0.00951452,92730.0,92714.0,0.09176]
[1767732365447,0.010791,92729.0,92714.0,0.09176]
[1767732365645,0.00951452,92730.0,92714.0,0.09176]
[1767732366457,0.01591324,92733.0,92714.0,0.09176]
[1767732367357,0.010791,92730.0,92714.0,0.09176]
[1767732367747,0.01591324,92733.0,92714.0,0.10793428]
[1767732367948,0.00951452,92735.0,92715.0,0.01617428]
[1767732367949,0.01079,92731.0,92715.0,0.01617428]
[1767732369556,0.010791,92729.0,92715.0,0.01617428]
[1767732369954,0.01591324,92734.0,92715.0,0.01617428]
[1767732370764,0.09176,92747.0,92730.0,0.00933823]
[1767732370962,0.102549,92747.0,92731.0,0.01617428]
[1767732371163,0.010789,92745.0,92731.0,0.01617428]
[1767732371358,0.010789,92745.0,92730.0,0.00933823]
[1767732371555,0.010789,92745.0,92727.0,0.01617428]
[1767732373266,0.010789,92743.0,92727.0,0.01617428]
[1767732374264,0.010789,92746.0,92727.0,0.01617428]
[1767732375763,0.010789,92744.0,92727.0,0.01617428]
[1767732378867,0.010789,92743.0,92727.0,0.01617428]
[1767732379964,0.00951452,92737.0,92716.0,0.01617428]
[1767732380165,0.02542776,92733.0,92717.0,0.09176]
[1767732380368,0.010791,92730.0,92717.0,0.09176]
[1767732380872,0.01591324,92732.0,92717.0,0.09176]
[1767732381263,0.01591324,92732.0,92713.0,0.01617428]
[1767732381463,0.02030452,92733.0,92714.0,0.10793428]
[1767732381768,0.02030452,92733.0,92714.0,0.11872628]
[1767732382170,0.00951452,92733.0,92714.0,0.11872628]
[1767732384464,0.00951452,92733.0,92715.0,0.01617428]
[1767732385473,0.01591324,92721.0,92702.0,0.01617428]
[1767732385660,0.010791,92723.0,92705.0,0.01617428]
[1767732385863,0.00951452,92728.0,92710.0,0.01617428]
[1767732386064,0.010791,92727.0,92710.0,0.01617428]
[1767732387570,0.010791,92725.0,92710.0,0.01617428]
[1767732390271,0.00951452,92728.0,92710.0,0.01617428]
[1767732390463,0.010791,92727.0,92710.0,0.01617428]
[1767732391775,0.010791,92727.0,92708.0,0.02422389]
[1767732391976,0.010791,92727.0,92711.0,0.01488566]
[1767732392473,0.010791,92725.0,92710.0,0.00987013]
[1767732392674,0.010791,92725.0,92708.0,0.01488566]
[1767732393471,0.10170439,92720.0,92708.0,0.01488566]
[1767732396473,0.10170439,92720.0,92705.0,0.02475579]
[1767732397674,0.010791,92724.0,92705.0,0.02475579]
[1767732397973,0.01516795,92710.0,92689.0,0.01488566]
[1767732398179,0.010793,92705.0,92690.0,0.11659005]
[1767732398477,0.010793,92709.0,92691.0,0.01488566]
[1767732398672,0.010793,92707.0,92692.0,0.01488566]
[1767732398874,0.010793,92707.0,92690.0,0.00987013]
[1767732398875,0.010793,92705.0,92690.0,0.00987013]
[1767732399179,7.878e-05,92704.0,92690.0,0.00987013]
[1767732399571,0.010794,92703.0,92690.0,0.00987013]
[1767732399971,7.878e-05,92704.0,92690.0,0.00987013]
[1767732403276,7.878e-05,92704.0,92682.0,0.01488566]
[1767732403277,0.10170439,92700.0,92682.0,0.01488566]
[1767732403480,7.878e-05,92699.0,92683.0,0.10668566]
[1767732403975,7.878e-05,92699.0,92684.0,0.01488566]
[1767732404372,7.878e-05,92699.0,92683.0,0.10167013]
[1767732405081,7.878e-05,92699.0,92683.0,0.0918]
[1767732406279,0.01516795,92718.0,92695.0,0.01488566]
[1767732406483,0.01516795,92718.0,92698.0,0.01488566]
[1767732406484,0.010792,92713.0,92698.0,0.01488566]
[1767732406686,0.010792,92713.0,92697.0,0.00987013]
[1767732406988,0.01516795,92715.0,92695.0,0.01488566]
[1767732407372,0.0247405,92715.0,92695.0,0.01488566]
[1767732407576,0.010793,92712.0,92695.0,0.01488566]
[1767732408377,0.10170439,92710.0,92692.0,0.01488566]
[1767732408676,0.010793,92707.0,92692.0,0.01488566]
[1767732409083,0.10170439,92702.0,92689.0,0.01488566]
[1767732409384,0.00957255,92708.0,92689.0,0.01488566]
[1767732409583,0.0918,92717.0,92693.0,0.00987013]
[1767732409885,0.10696795,92717.0,92695.0,0.01488566]
[1767732410086,0.0247405,92716.0,92695.0,0.01488566]
[1767732410286,0.01516795,92715.0,92696.0,0.010794]
[1767732410486,0.0247405,92715.0,92696.0,0.010794]
[1767732411083,0.0247405,92715.0,92695.0,0.01488566]
[1767732411479,0.010792,92716.0,92697.0,0.01488566]
[1767732411679,0.0355325,92716.0,92697.0,0.01488566]
[1767732411878,0.01516795,92715.0,92696.0,0.00987013]
[1767732412088,0.01516795,92714.0,92696.0,0.00987013]
[1767732412683,0.01516795,92714.0,92693.0,0.01488566]
[1767732414791,0.0247405,92714.0,92693.0,0.01488566]
[1767732415186,0.01516795,92713.0,92693.0,0.01488566]
[1767732416997,0.01516795,92713.0,92695.0,0.010795]
[1767732417193,0.01516795,92713.0,92693.0,0.01488566]
[1767732417393,0.01516795,92713.0,92693.0,0.02568066]
[1767732417984,0.02596095,92713.0,92693.0,0.01488566]
[1767732419586,0.01392351,92712.0,92693.0,0.01488566]
[1767732419988,0.010793,92711.0,92693.0,0.01488566]
[1767732420183,0.01392351,92708.0,92688.0,0.01490492]
[1767732420395,0.010793,92706.0,92688.0,0.01490492]
[1767732422295,0.010794,92704.0,92688.0,0.01490492]
[1767732422691,0.02386538,92708.0,92688.0,0.01490492]
[1767732422890,0.010793,92707.0,92688.0,0.01490492]
[1767732423586,0.010793,92705.0,92688.0,0.00890492]
[1767732423790,0.02366498,92706.0,92686.0,0.00919877]
[1767732424096,0.01429726,92705.0,92686.0,0.00919877]
[1767732425191,0.010794,92703.0,92686.0,0.00919877]
[1767732425396,0.01429726,92702.0,92681.0,0.010796]
[1767732425588,0.02366498,92702.0,92682.0,0.0918]
[1767732425896,0.02366498,92702.0,92683.0,0.01408707]
[1767732426091,0.00936772,92702.0,92683.0,0.01408707]
[1767732426297,0.00936772,92702.0,92684.0,0.01408707]
[1767732426506,0.010794,92704.0,92685.0,0.01408707]
[1767732427899,0.02509126,92704.0,92685.0,0.01408707]
[1767732429195,0.01429726,92692.0,92673.0,0.00928779]
[1767732429499,0.00936772,92693.0,92674.0,0.10588707]
[1767732429693,0.010795,92694.0,92680.0,0.10170439]
[1767732430491,0.010794,92697.0,92680.0,0.10170439]
[1767732430898,0.02366498,92698.0,92680.0,0.10170439]
[1767732431194,0.02366498,92698.0,92678.0,0.01408707]
[1767732431393,0.02366498,92698.0,92678.0,0.00508707]
[1767732431594,0.03445898,92698.0,92678.0,0.00508707]
[1767732432099,0.01429726,92697.0,92678.0,0.00508707]
[1767732432892,0.00936772,92686.0,92667.0,0.0918]
[1767732433402,0.01429726,92688.0,92670.0,0.11072129]
[1767732433598,0.01429726,92688.0,92670.0,0.0090169]
[1767732433898,0.01429726,92688.0,92670.0,0.11072129]
[1767732434992,0.02509226,92688.0,92670.0,0.0090169]
[1767732435190,0.02509226,92688.0,92670.0,0.11072129]
[1767732437393,0.01429726,92688.0,92670.0,0.11072129]
[1767732437594,0.02509226,92688.0,92670.0,0.11072129]
[1767732438102,0.02509226,92688.0,92670.0,0.0090169]
[1767732438401,0.02509226,92688.0,92670.0,0.11072129]
[1767732438705,0.02509226,92688.0,92670.0,0.0090169]
[1767732439003,0.02509226,92688.0,92670.0,0.10170439]
[1767732439399,0.02509226,92688.0,92668.0,0.00928779]
[1767732439603,0.02509226,92688.0,92670.0,0.10170439]
[1767732441693,0.02509226,92688.0,92668.0,0.00928779]
[1767732441898,0.01429726,92685.0,92667.0,0.07897513]
[1767732442300,0.010796,92686.0,92667.0,0.07897513]
[1767732442706,0.010796,92686.0,92667.0,0.08826292]
[1767732443505,0.00936772,92688.0,92667.0,0.08826292]
[1767732443807,0.02509226,92689.0,92670.0,0.10170439]
[1767732444002,0.0918,92691.0,92674.0,0.010797]
[1767732444206,0.01429726,92689.0,92670.0,0.10170439]
[1767732444404,0.02366498,92690.0,92670.0,0.11099218]
[1767732445109,0.03445998,92690.0,92670.0,0.12178918]
[1767732445309,0.02366498,92690.0,92670.0,0.12178918]
[1767732446212,0.02366498,92690.0,92671.0,0.00928779]
[1767732446808,0.02366498,92690.0,92670.0,0.08978918]
[1767732448633,0.02366498,92690.0,92670.0,0.010797]
[1767732450331,0.03445998,92690.0,92669.0,0.00928779]
[1767732450633,0.02366498,92690.0,92670.0,0.010797]
[1767732450819,0.00215753,92699.0,92669.0,0.00928779]
[1767732451029,0.0918,92701.0,92685.0,0.00928779]
[1767732451230,0.10116772,92714.0,92693.0,0.003189]
[1767732451531,0.10116772,92714.0,92670.0,0.28097746]
[1767732451532,0.0918,92714.0,92696.0,0.00300977]
[1767732451726,0.00955282,92713.0,92694.0,0.010795]
[1767732452123,0.00955282,92713.0,92695.0,0.010795]
[1767732452330,0.00955282,92713.0,92692.0,0.010795]
[1767732452628,0.00955282,92713.0,92694.0,0.01240288]
[1767732453432,0.00955282,92713.0,92697.0,0.010794]
[1767732453632,0.00955282,92713.0,92695.0,0.00160788]
[1767732453832,0.00955282,92713.0,92696.0,0.010794]
[1767732454522,0.00955282,92713.0,92695.0,0.00160788]
[1767732455728,0.00955282,92712.0,92695.0,0.00160788]
[1767732457328,0.00955282,92712.0,92692.0,0.01218321]
[1767732457528,0.02265275,92711.0,92692.0,0.00138821]
[1767732457728,0.00955282,92710.0,92692.0,0.00138821]
[1767732457935,0.00955282,92710.0,92695.0,0.010795]
[1767732458237,0.00955282,92710.0,92694.0,0.010795]
[1767732458830,0.00955282,92710.0,92692.0,0.00138821]
[1767732461239,0.00955282,92709.0,92690.0,0.010795]
[1767732461429,0.00955282,92708.0,92690.0,0.010795]
[1767732461631,0.00955282,92708.0,92689.0,0.00032122]
[1767732461827,0.00955282,92686.0,92651.0,0.0108]
[1767732462127,0.010796,92683.0,92668.0,0.0918]
[1767732462327,0.02034982,92677.0,92638.0,0.20842867]
[1767732462535,0.00955282,92676.0,92651.0,0.0108]
[1767732462734,0.00955282,92676.0,92655.0,0.010799]
[1767732462936,0.00955282,92676.0,92656.0,0.0918]
[1767732465841,0.00955282,92673.0,92654.0,0.010799]
[1767732466037,0.01309993,92670.0,92655.0,0.0918]
[1767732466237,0.00955282,92668.0,92650.0,0.1026]
[1767732466637,0.00955282,92668.0,92650.0,0.0918]
[1767732470049,0.00955282,92668.0,92650.0,0.0878]
[1767732476150,0.00955282,92668.0,92651.0,0.0108]
[1767732477752,0.00955282,92668.0,92650.0,0.0866]
[1767732479057,0.00955282,92668.0,92650.0,0.0974]
[1767732480655,0.10639178,92676.0,92659.0,0.010799]
[1767732480852,0.01459178,92676.0,92661.0,0.010799]
[1767732481051,0.09184,92679.0,92661.0,0.010799]
[1767732481554,0.09184,92679.0,92658.0,0.010799]
[1767732481756,0.09184,92679.0,92660.0,0.010799]
[1767732482465,0.10650444,92679.0,92660.0,0.010799]
[1767732482658,0.11585001,92679.0,92660.0,0.010799]
[1767732483264,0.00934557,92678.0,92657.0,0.010799]
[1767732483854,0.00934557,92676.0,92654.0,0.010799]
[1767732484258,0.00934557,92675.0,92654.0,0.010799]
[1767732484466,0.00934557,92675.0,92656.0,0.010799]
[1767732486261,0.00934557,92675.0,92650.0,0.067399]
[1767732486467,0.00934557,92675.0,92654.0,0.010799]
[1767732487657,0.00934557,92675.0,92650.0,0.067399]
[1767732487863,0.00934557,92675.0,92651.0,0.0108]
[1767732488263,0.00934557,92673.0,92650.0,0.067399]
[1767732488464,0.00934557,92666.0,92650.0,0.067399]
[1767732489070,0.00934557,92665.0,92647.0,0.09184]
[1767732489869,0.00934557,92665.0,92648.0,0.0108]
[1767732490181,0.00934557,92665.0,92649.0,0.0108]
[1767732493971,0.00934557,92665.0,92647.0,0.08664]
[1767732494178,0.00934557,92665.0,92649.0,0.0108]
[1767732500879,0.00934557,92671.0,92655.0,0.010799]
[1767732501183,0.02014257,92674.0,92651.0,0.0108]
[1767732501476,0.01342801,92664.0,92643.0,0.010801]
[1767732501681,0.00934557,92661.0,92644.0,0.07764]
[1767732502175,0.00934557,92661.0,92647.0,0.0108]
[1767732503383,0.00934557,92667.0,92653.0,0.010799]
[1767732503582,0.00934557,92667.0,92652.0,0.010799]
[1767732503978,0.00934557,92667.0,92649.0,0.0108]
[1767732505870,0.00934557,92667.0,92644.0,0.07764]
[1767732505871,0.00934557,92667.0,92651.0,0.0108]
[1767732508380,0.00934557,92667.0,92644.0,0.07764]
[1767732508586,0.00934557,92667.0,92653.0,0.010799]
[1767732509383,0.00934557,92667.0,92644.0,0.07764]
[1767732509581,0.00934557,92667.0,92652.0,0.010799]
[1767732509883,0.00934557,92667.0,92646.0,0.0108]
[1767732510188,0.00934557,92667.0,92654.0,0.010799]
[1767732511687,0.00934557,92667.0,92655.0,0.010799]
[1767732511886,0.00934557,92667.0,92657.0,0.010799]
[1767732512688,0.02366633,92679.0,92652.0,0.0108]
[1767732512885,0.02366633,92679.0,92660.0,0.10181401]
[1767732513086,0.02366633,92679.0,92659.0,0.09184]
[1767732513280,0.02366633,92679.0,92664.0,0.010798]
[1767732513587,0.02366633,92679.0,92662.0,0.010798]
[1767732513588,0.00900189,92678.0,92662.0,0.010798]
[1767732513980,0.00900189,92678.0,92660.0,0.10181401]
[1767732515286,0.00900189,92678.0,92660.0,0.11261301]
[1767732517179,0.00900189,92678.0,92660.0,0.08661301]
[1767732517882,0.01466444,92679.0,92668.0,0.10181401]
[1767732518076,0.00900189,92690.0,92673.0,0.010797]
[1767732518077,0.09184,92688.0,92673.0,0.010797]
[1767732518279,0.00900189,92690.0,92680.0,0.10181401]
[1767732519091,0.02305468,92690.0,92680.0,0.11261001]
[1767732520383,0.09184,92702.0,92688.0,0.010795]
[1767732520587,0.01358624,92706.0,92690.0,0.10181401]
[1767732520786,0.10521105,92707.0,92690.0,0.10181401]
[1767732520985,0.01337105,92706.0,92690.0,0.10181401]
[1767732521779,0.01337105,92705.0,92681.0,0.102636]
[1767732521980,0.01337105,92705.0,92683.0,0.010796]
[1767732522395,0.00900189,92701.0,92683.0,0.010796]
[1767732523896,0.00900189,92701.0,92689.0,0.010795]
[1767732524083,0.00900189,92701.0,92686.0,0.010796]
[1767732524793,0.00900189,92701.0,92681.0,0.10056713]
[1767732525584,0.00900189,92701.0,92683.0,0.010796]
[1767732525797,0.01371385,92706.0,92681.0,0.10056713]
[1767732525798,0.02237294,92697.0,92681.0,0.091636]
[1767732526092,0.00900189,92697.0,92681.0,0.091636]
[1767732530399,0.00900189,92697.0,92682.0,0.010796]
[1767732530994,0.00900189,92697.0,92681.0,0.091636]
[1767732531900,0.00900189,92703.0,92685.0,0.010796]
[1767732532198,0.00900189,92701.0,92685.0,0.010796]
[1767732532493,0.00900189,92701.0,92681.0,0.09627101]
[1767732532700,0.00900189,92700.0,92681.0,0.087432]
[1767732533398,0.00900189,92700.0,92683.0,0.010796]
[1767732533994,0.00900189,92700.0,92681.0,0.087432]
[1767732534393,0.00900189,92700.0,92686.0,0.010796]
[1767732536599,0.00900189,92700.0,92684.0,0.010796]
[1767732537102,0.00900189,92700.0,92681.0,0.087432]
[1767732537103,0.00900189,92696.0,92681.0,0.087432]
[1767732537401,0.00900189,92689.0,92681.0,0.0918]
[1767732537601,0.00900189,92688.0,92681.0,0.0918]
[1767732538002,0.00900189,92688.0,92673.0,0.010797]
[1767732538198,0.00900189,92688.0,92674.0,0.0918]
[1767732538800,0.00900189,92688.0,92675.0,0.010797]
[1767732539591,0.00900189,92688.0,92674.0,0.102597]
[1767732540296,0.01304449,92692.0,92674.0,0.076597]
[1767732540697,0.01304449,92692.0,92675.0,0.010797]
[1767732541605,0.00962887,92691.0,92674.0,0.076597]
[1767732542105,0.00962887,92687.0,92669.0,0.00215823]
[1767732542308,0.00962887,92681.0,92670.0,0.0918]
[1767732542607,0.00962887,92681.0,92669.0,0.00215823]
[1767732543407,0.00962887,92681.0,92670.0,0.10181401]
[1767732543603,0.00962887,92681.0,92669.0,0.00215823]
[1767732545409,0.00962887,92681.0,92669.0,0.01295623]
[1767732545612,0.00962887,92687.0,92669.0,0.00215823]
[1767732545910,0.00962887,92687.0,92671.0,0.010797]
[1767732546905,0.00962887,92687.0,92670.0,0.10181401]
[1767732548108,0.00962887,92687.0,92671.0,0.010797]
[1767732548312,0.00962887,92687.0,92673.0,0.010797]
[1767732548507,0.00962887,92699.0,92678.0,0.00838071]
[1767732548810,0.00962887,92699.0,92689.0,0.10181401]
[1767732549018,0.0918,92701.0,92682.0,0.010796]
[1767732549313,0.0918,92701.0,92684.0,0.010796]
[1767732549810,0.1044075,92702.0,92681.0,0.010796]
[1767732550011,0.0126075,92701.0,92681.0,0.010796]
[1767732550704,0.0126075,92701.0,92680.0,0.10181401]
[1767732550899,0.42223637,92701.0,92680.0,0.10181401]
[1767732551104,0.02223637,92700.0,92680.0,0.10181401]
[1767732551806,0.010794,92696.0,92678.0,0.00838071]
[1767732552009,0.03303037,92697.0,92678.0,0.00838071]
[1767732553014,0.02223637,92697.0,92678.0,0.00838071]
[1767732555115,0.02223637,92694.0,92673.0,0.11243672]
[1767732555314,0.02223637,92694.0,92673.0,0.10163972]
[1767732555912,0.02223637,92694.0,92673.0,0.07163972]
[1767732556313,0.00962887,92693.0,92673.0,0.07163972]
[1767732556812,0.00962887,92693.0,92675.0,0.010797]
[1767732557014,0.00962887,92693.0,92673.0,0.07163972]
[1767732557408,0.00962887,92691.0,92670.0,0.10181401]
[1767732557615,0.00962887,92683.0,92667.0,0.010798]
[1767732557811,0.00962887,92683.0,92671.0,0.0918]
[1767732563321,0.00962887,92688.0,92671.0,0.0918]
[1767732563513,0.00962887,92688.0,92671.0,0.0438]
[1767732564621,0.00962887,92688.0,92671.0,0.054597]
[1767732565123,0.00962887,92688.0,92671.0,0.0438]
[1767732571330,0.00962887,92688.0,92671.0,0.0298]
[1767732575127,0.00962887,92688.0,92679.0,0.00156698]
[1767732575734,0.00962887,92688.0,92683.0,0.00234982]
[1767732576229,0.00962887,92688.0,92685.0,0.00295842]
[1767732576535,0.00962887,92688.0,92671.0,0.0298]
[1767732579039,0.00989107,92686.0,92671.0,0.0208]
[1767732586831,0.01357286,92690.0,92671.0,0.022597]
[1767732587031,0.01357286,92690.0,92671.0,0.0118]
[1767732588240,0.00989107,92686.0,92671.0,0.0118]
[1767732588440,0.010795,92688.0,92671.0,0.0118]
[1767732589140,0.010795,92689.0,92671.0,0.0118]
[1767732590542,0.010795,92688.0,92671.0,0.0118]
[1767732590843,0.010796,92686.0,92671.0,0.0118]
[1767732591444,0.010795,92689.0,92671.0,0.0118]
[1767732591947,0.010796,92687.0,92671.0,0.0118]
[1767732592343,0.02068607,92690.0,92671.0,0.0118]
[1767732593148,0.010795,92688.0,92671.0,0.0118]
[1767732593748,0.00989107,92690.0,92671.0,0.0118]
[1767732594454,0.00989107,92690.0,92671.0,0.0078]
[1767732595249,0.02068607,92690.0,92671.0,0.0078]
[1767732595939,0.00989107,92690.0,92671.0,0.0078]
[1767732599948,0.10116219,92694.0,92671.0,0.0269272]
[1767732600148,0.00936219,92692.0,92671.0,0.0083302]
[1767732600350,0.00936219,92689.0,92669.0,0.00215823]
[1767732600752,0.00936219,92688.0,92669.0,0.00215823]
[1767732601250,0.010796,92687.0,92669.0,0.00215823]
[1767732601450,0.02061775,92685.0,92669.0,0.00215823]